[Event "*** SCC Grand Prix: Titled Tuesday Blitz"]
[Site "Chess.com"]
[Date "2020.08.25"]
[Round "6"]
[White "Evgeny81"]
[Black "TwentyHoursADay"]
[Result "1-0"]
[WhiteElo "2687"]
[BlackElo "2479"]
[TimeControl "180+1"]
[EndTime "11:08:34 PDT"]
[Termination "Evgeny81 won on time"]

1. Nf3 {[%clk 0:03:00.9]} 1... b6 {[%clk 0:02:59.6]} 2. g3 {[%clk 0:03:00.3]}
2... Bb7 {[%clk 0:02:59]} 3. Bg2 {[%clk 0:03:01]} 3... h5 {[%clk 0:02:59.3]} 4.
O-O {[%clk 0:03:01]} 4... h4 {[%clk 0:02:59.7]} 5. Nxh4 {[%clk 0:03:01.3]} 5...
Bxg2 {[%clk 0:03:00.5]} 6. Nxg2 {[%clk 0:03:01]} 6... Qc8 {[%clk 0:03:01.4]} 7.
h4 {[%clk 0:02:56.2]} 7... Qb7 {[%clk 0:03:02.3]} 8. d3 {[%clk 0:02:55.7]} 8...
Nc6 {[%clk 0:03:00.9]} 9. e4 {[%clk 0:02:55.5]} 9... O-O-O {[%clk 0:02:59.2]}
10. Nc3 {[%clk 0:02:55.1]} 10... f6 {[%clk 0:02:48.8]} 11. a4 {[%clk 0:02:49.5]}
11... g5 {[%clk 0:02:48.2]} 12. hxg5 {[%clk 0:02:50.1]} 12... fxg5 {[%clk
0:02:48.4]} 13. Bxg5 {[%clk 0:02:50.7]} 13... Bh6 {[%clk 0:02:31.2]} 14. Bh4
{[%clk 0:02:50]} 14... Rf8 {[%clk 0:02:23.6]} 15. d4 {[%clk 0:02:48.4]} 15...
Bg7 {[%clk 0:02:20.5]} 16. Ne2 {[%clk 0:02:42.8]} 16... Nf6 {[%clk 0:01:58.1]}
17. f3 {[%clk 0:02:36.8]} 17... e5 {[%clk 0:01:32.7]} 18. d5 {[%clk 0:02:36]}
18... Ne7 {[%clk 0:01:32.5]} 19. a5 {[%clk 0:02:28.3]} 19... b5 {[%clk
0:01:29.7]} 20. Qd3 {[%clk 0:02:20.9]} 20... Ng6 {[%clk 0:01:24.6]} 21. Bg5
{[%clk 0:02:17.6]} 21... Rh3 {[%clk 0:01:12.4]} 22. a6 {[%clk 0:02:14.2]} 22...
Qb8 {[%clk 0:00:40.1]} 23. d6 {[%clk 0:01:52.1]} 23... c6 {[%clk 0:00:35.1]} 24.
Rfd1 {[%clk 0:01:45.8]} 24... Nh5 {[%clk 0:00:34.5]} 25. Kf2 {[%clk 0:01:40.8]}
25... Bf6 {[%clk 0:00:18.4]} 26. Bxf6 {[%clk 0:01:32.9]} 26... Nxf6 {[%clk
0:00:18.3]} 27. Ke1 {[%clk 0:01:22.1]} 27... Rh2 {[%clk 0:00:16.3]} 28. Ne3
{[%clk 0:01:19.2]} 28... Nh5 {[%clk 0:00:16.3]} 29. Nf5 {[%clk 0:01:16.6]} 29...
Qb6 {[%clk 0:00:12.7]} 30. Kd2 {[%clk 0:01:12.6]} 30... Nxg3 {[%clk 0:00:10.9]}
31. Nxg3 {[%clk 0:01:06.1]} 31... Nf4 {[%clk 0:00:10.7]} 32. Qe3 {[%clk
0:01:06.2]} 32... c5 {[%clk 0:00:07.1]} 33. Kc1 {[%clk 0:00:57.8]} 33... Nxe2+
{[%clk 0:00:05.2]} 34. Nxe2 {[%clk 0:00:57.4]} 34... Rg8 {[%clk 0:00:05.3]} 35.
Rg1 {[%clk 0:00:43.7]} 35... Rgg2 {[%clk 0:00:02.2]} 36. Rxg2 {[%clk 0:00:39.7]}
36... Rxg2 {[%clk 0:00:03.1]} 37. b4 {[%clk 0:00:38.8]} 37... Qxd6 {[%clk
0:00:03]} 38. bxc5 {[%clk 0:00:34.5]} 38... Qe6 {[%clk 0:00:03.3]} 39. Qd3
{[%clk 0:00:26.3]} 39... Kc7 {[%clk 0:00:02.4]} 40. Kb2 {[%clk 0:00:24.4]} 40...
Qc6 {[%clk 0:00:01.9]} 41. Nc3 {[%clk 0:00:20.9]} 41... Qxc5 {[%clk 0:00:01.7]}
42. Nd5+ {[%clk 0:00:20.6]} 42... Kd8 {[%clk 0:00:01.1]} 43. Qc3 {[%clk
0:00:18.4]} 1-0

[Event "*** SCC Grand Prix: Titled Tuesday Blitz"]
[Site "Chess.com"]
[Date "2020.08.25"]
[Round "6"]
[White "Phenix2k"]
[Black "ErikBlomqvist"]
[Result "1-0"]
[WhiteElo "2139"]
[BlackElo "2499"]
[TimeControl "180+1"]
[EndTime "11:08:34 PDT"]
[Termination "Phenix2k won on time"]

1. d4 {[%clk 0:03:00.9]} 1... Nf6 {[%clk 0:02:58.6]} 2. c4 {[%clk 0:03:00.8]}
2... e6 {[%clk 0:02:57.9]} 3. g3 {[%clk 0:03:01]} 3... Bb4+ {[%clk 0:02:56.4]}
4. Bd2 {[%clk 0:02:59.5]} 4... a5 {[%clk 0:02:55.9]} 5. Bg2 {[%clk 0:02:59.2]}
5... d5 {[%clk 0:02:56.1]} 6. Nf3 {[%clk 0:02:54.1]} 6... O-O {[%clk 0:02:56.1]}
7. O-O {[%clk 0:02:53.8]} 7... Be7 {[%clk 0:02:53.3]} 8. Bf4 {[%clk 0:02:46.6]}
8... c6 {[%clk 0:02:44.2]} 9. Qc2 {[%clk 0:02:43]} 9... Nbd7 {[%clk 0:02:42.6]}
10. Nbd2 {[%clk 0:02:41.7]} 10... Nh5 {[%clk 0:02:42.4]} 11. Be3 {[%clk
0:02:41.8]} 11... Nhf6 {[%clk 0:02:42.4]} 12. Bf4 {[%clk 0:02:40]} 12... Nh5
{[%clk 0:02:42.6]} 13. Be3 {[%clk 0:02:39.9]} 13... f5 {[%clk 0:02:39.2]} 14.
Rfd1 {[%clk 0:02:27.7]} 14... Bd6 {[%clk 0:02:33.6]} 15. Nf1 {[%clk 0:02:17.5]}
15... Qe7 {[%clk 0:02:22.8]} 16. Rab1 {[%clk 0:01:57.8]} 16... f4 {[%clk
0:02:03.7]} 17. Bc1 {[%clk 0:01:55.1]} 17... g5 {[%clk 0:01:58.4]} 18. e4 {[%clk
0:01:50.8]} 18... g4 {[%clk 0:01:55.1]} 19. Nh4 {[%clk 0:01:45.4]} 19... f3
{[%clk 0:01:54]} 20. Bh1 {[%clk 0:01:43.9]} 20... Qg7 {[%clk 0:01:23.7]} 21.
cxd5 {[%clk 0:01:23]} 21... cxd5 {[%clk 0:01:19.5]} 22. exd5 {[%clk 0:01:23]}
22... exd5 {[%clk 0:01:19.6]} 23. Nf5 {[%clk 0:01:22.4]} 23... Qg6 {[%clk
0:00:56.7]} 24. N1e3 {[%clk 0:01:11.5]} 24... Nb6 {[%clk 0:00:39.1]} 25. Nxd6
{[%clk 0:01:06.3]} 25... Qxd6 {[%clk 0:00:40]} 26. Qc5 {[%clk 0:00:58]} 26...
Rd8 {[%clk 0:00:33.7]} 27. b4 {[%clk 0:00:52.3]} 27... axb4 {[%clk 0:00:27.2]}
28. Rxb4 {[%clk 0:00:51.3]} 28... Ra6 {[%clk 0:00:22.3]} 29. h3 {[%clk
0:00:39.7]} 29... Nf6 {[%clk 0:00:17.3]} 30. Qxd6 {[%clk 0:00:34.2]} 30... Rxd6
{[%clk 0:00:17.1]} 31. hxg4 {[%clk 0:00:34.5]} 31... Nxg4 {[%clk 0:00:07.3]} 32.
Bxf3 {[%clk 0:00:31.5]} 32... Nxe3 {[%clk 0:00:07.1]} 33. Bxe3 {[%clk
0:00:30.3]} 33... Rxa2 {[%clk 0:00:07]} 34. Rc1 {[%clk 0:00:27.2]} 34... Be6
{[%clk 0:00:06.9]} 35. Rcb1 {[%clk 0:00:25.9]} 35... Nc4 {[%clk 0:00:06.2]} 36.
Bf4 {[%clk 0:00:24.8]} 36... Rd7 {[%clk 0:00:03.6]} 37. Rxb7 {[%clk 0:00:24.8]}
37... Rxb7 {[%clk 0:00:03.4]} 38. Rxb7 {[%clk 0:00:25.1]} 38... Bf7 {[%clk
0:00:02.2]} 39. Bh6 {[%clk 0:00:23.5]} 39... Ra1+ {[%clk 0:00:02]} 40. Kg2
{[%clk 0:00:21.9]} 40... Ra8 {[%clk 0:00:02.9]} 41. Rxf7 {[%clk 0:00:19.9]}
41... Ne3+ {[%clk 0:00:02.2]} 42. Bxe3 {[%clk 0:00:18.7]} 1-0

[Event "*** SCC Grand Prix: Titled Tuesday Blitz"]
[Site "Chess.com"]
[Date "2020.08.25"]
[Round "6"]
[White "Schack-Hugo"]
[Black "zmarian"]
[Result "1-0"]
[WhiteElo "2293"]
[BlackElo "2165"]
[TimeControl "180+1"]
[EndTime "11:08:34 PDT"]
[Termination "Schack-Hugo won by resignation"]

1. d4 {[%clk 0:03:00.9]} 1... g6 {[%clk 0:02:59.4]} 2. Nf3 {[%clk 0:03:00.7]}
2... Bg7 {[%clk 0:02:59.8]} 3. g3 {[%clk 0:03:01.1]} 3... c5 {[%clk 0:02:58.3]}
4. c3 {[%clk 0:03:00]} 4... Nf6 {[%clk 0:02:56.7]} 5. Bg2 {[%clk 0:02:59.8]}
5... O-O {[%clk 0:02:56.1]} 6. O-O {[%clk 0:02:59.8]} 6... Qc7 {[%clk
0:02:52.3]} 7. e3 {[%clk 0:02:51.9]} 7... b6 {[%clk 0:02:50.8]} 8. b3 {[%clk
0:02:51.1]} 8... Bb7 {[%clk 0:02:48.7]} 9. Bb2 {[%clk 0:02:50.6]} 9... d5 {[%clk
0:02:48.4]} 10. Ne5 {[%clk 0:02:50.2]} 10... Nbd7 {[%clk 0:02:43.4]} 11. f4
{[%clk 0:02:49.7]} 11... e6 {[%clk 0:02:38.9]} 12. Nd2 {[%clk 0:02:48.8]} 12...
Rac8 {[%clk 0:02:33.2]} 13. Rc1 {[%clk 0:02:47.4]} 13... Qb8 {[%clk 0:02:19.2]}
14. g4 {[%clk 0:02:45.4]} 14... cxd4 {[%clk 0:02:19]} 15. exd4 {[%clk
0:02:41.6]} 15... Qd6 {[%clk 0:02:08.7]} 16. g5 {[%clk 0:02:40.3]} 16... Ne8
{[%clk 0:02:03]} 17. Ndf3 {[%clk 0:02:16.2]} 17... f6 {[%clk 0:02:01.3]} 18.
gxf6 {[%clk 0:02:02]} 18... Nexf6 {[%clk 0:01:56.1]} 19. Ng5 {[%clk 0:01:59.3]}
19... Rce8 {[%clk 0:01:51.1]} 20. Qd3 {[%clk 0:01:58.2]} 20... Nb8 {[%clk
0:01:46]} 21. Rf2 {[%clk 0:01:41.5]} 21... Nc6 {[%clk 0:01:35.5]} 22. Rcf1
{[%clk 0:01:22.1]} 22... Bc8 {[%clk 0:01:29.8]} 23. Bh3 {[%clk 0:01:11.8]} 23...
Ne7 {[%clk 0:01:25.8]} 24. a4 {[%clk 0:01:00.3]} 24... Nf5 {[%clk 0:01:23.9]}
25. Bxf5 {[%clk 0:01:00]} 25... exf5 {[%clk 0:01:19.7]} 26. Ra1 {[%clk
0:00:59.5]} 26... Ne4 {[%clk 0:01:13.1]} 27. Ba3 {[%clk 0:00:44.3]} 27... Nxf2
{[%clk 0:01:08.1]} 28. Kxf2 {[%clk 0:00:45.2]} 28... Qc7 {[%clk 0:00:56.8]} 29.
Bxf8 {[%clk 0:00:40.3]} 29... Rxf8 {[%clk 0:00:51.5]} 30. Rg1 {[%clk 0:00:27.9]}
30... Bf6 {[%clk 0:00:47.1]} 31. Qh3 {[%clk 0:00:17.6]} 31... Qg7 {[%clk
0:00:43.1]} 32. Nxh7 {[%clk 0:00:16.5]} 32... Bxe5 {[%clk 0:00:38.7]} 33. Nxf8
{[%clk 0:00:12.7]} 33... Bxd4+ {[%clk 0:00:34.6]} 34. cxd4 {[%clk 0:00:13.6]}
34... Qxd4+ {[%clk 0:00:34]} 35. Qe3 {[%clk 0:00:14.5]} 35... Qxe3+ {[%clk
0:00:32.8]} 36. Kxe3 {[%clk 0:00:15.4]} 36... Kxf8 {[%clk 0:00:33]} 37. Rxg6
{[%clk 0:00:15.3]} 37... Kf7 {[%clk 0:00:33.2]} 38. Rd6 {[%clk 0:00:14.2]} 38...
Be6 {[%clk 0:00:31.9]} 39. Kd4 {[%clk 0:00:14]} 39... Ke7 {[%clk 0:00:31.4]} 40.
Rc6 {[%clk 0:00:13.7]} 40... Kd7 {[%clk 0:00:30.9]} 41. Rc1 {[%clk 0:00:14]}
41... a5 {[%clk 0:00:29.6]} 42. Rb1 {[%clk 0:00:13.5]} 42... Kd6 {[%clk
0:00:29.3]} 43. b4 {[%clk 0:00:13.3]} 43... axb4 {[%clk 0:00:28.9]} 44. Rxb4
{[%clk 0:00:12.9]} 44... Kc6 {[%clk 0:00:29.4]} 45. h4 {[%clk 0:00:13.2]} 45...
Bf7 {[%clk 0:00:28.7]} 46. Rb1 {[%clk 0:00:13.4]} 46... Bh5 {[%clk 0:00:26.9]}
47. Re1 {[%clk 0:00:12.4]} 47... Be8 {[%clk 0:00:24.2]} 48. Rxe8 {[%clk
0:00:12.1]} 1-0

[Event "*** SCC Grand Prix: Titled Tuesday Blitz"]
[Site "Chess.com"]
[Date "2020.08.25"]
[Round "6"]
[White "Carnivoras"]
[Black "Siemba"]
[Result "1-0"]
[WhiteElo "2663"]
[BlackElo "2473"]
[TimeControl "180+1"]
[EndTime "11:08:35 PDT"]
[Termination "Carnivoras won on time"]

1. d4 {[%clk 0:03:00.9]} 1... d5 {[%clk 0:02:59.8]} 2. c4 {[%clk 0:03:01.3]}
2... c5 {[%clk 0:02:53]} 3. dxc5 {[%clk 0:02:58.8]} 3... Nf6 {[%clk 0:02:42.5]}
4. cxd5 {[%clk 0:02:55.2]} 4... e6 {[%clk 0:02:40.8]} 5. dxe6 {[%clk 0:02:35.9]}
5... Qxd1+ {[%clk 0:02:37.2]} 6. Kxd1 {[%clk 0:02:36.8]} 6... Bxe6 {[%clk
0:02:37.4]} 7. Nc3 {[%clk 0:02:34.1]} 7... Bxc5 {[%clk 0:02:37.3]} 8. e3 {[%clk
0:02:34.1]} 8... Nc6 {[%clk 0:02:35.6]} 9. Bb5 {[%clk 0:02:31.9]} 9... O-O-O+
{[%clk 0:02:27.6]} 10. Ke2 {[%clk 0:02:31.7]} 10... Ne5 {[%clk 0:01:51.2]} 11.
Nf3 {[%clk 0:02:27.1]} 11... Nc4 {[%clk 0:01:36.6]} 12. b3 {[%clk 0:02:12.8]}
12... Nd6 {[%clk 0:01:33.9]} 13. Bd3 {[%clk 0:02:12.8]} 13... Kb8 {[%clk
0:01:07.9]} 14. Bb2 {[%clk 0:02:10.3]} 14... h6 {[%clk 0:01:01.2]} 15. Rhc1
{[%clk 0:02:06.7]} 15... Bb6 {[%clk 0:00:53.3]} 16. Na4 {[%clk 0:02:06.2]} 16...
Ba5 {[%clk 0:00:50.5]} 17. Bxf6 {[%clk 0:02:05.2]} 17... gxf6 {[%clk 0:00:50.3]}
18. Nd4 {[%clk 0:02:03.3]} 18... Bc8 {[%clk 0:00:48.1]} 19. a3 {[%clk
0:01:48.8]} 19... h5 {[%clk 0:00:46.3]} 20. b4 {[%clk 0:01:48]} 20... Bc7 {[%clk
0:00:46.7]} 21. Nc3 {[%clk 0:01:46.7]} 21... Be6 {[%clk 0:00:42.2]} 22. g3
{[%clk 0:01:33.4]} 22... h4 {[%clk 0:00:42.8]} 23. Rc2 {[%clk 0:01:18.6]} 23...
Bg4+ {[%clk 0:00:41.7]} 24. Kd2 {[%clk 0:01:00.9]} 24... hxg3 {[%clk 0:00:40.4]}
25. hxg3 {[%clk 0:00:58.5]} 25... Rh2 {[%clk 0:00:39.9]} 26. Kc1 {[%clk
0:00:57.5]} 26... Bb6 {[%clk 0:00:36.3]} 27. Kb2 {[%clk 0:00:56.6]} 27... Bxd4
{[%clk 0:00:29.9]} 28. exd4 {[%clk 0:00:57.5]} 28... Be6 {[%clk 0:00:19.5]} 29.
d5 {[%clk 0:00:50.9]} 29... Bf5 {[%clk 0:00:18.4]} 30. Bxf5 {[%clk 0:00:49.9]}
30... Nxf5 {[%clk 0:00:19.3]} 31. Rd1 {[%clk 0:00:49.1]} 31... Nd6 {[%clk
0:00:14.6]} 32. Kb3 {[%clk 0:00:48.3]} 32... Rc8 {[%clk 0:00:10.8]} 33. Rd3
{[%clk 0:00:48]} 33... f5 {[%clk 0:00:09]} 34. Rf3 {[%clk 0:00:47.8]} 34... a6
{[%clk 0:00:02.5]} 35. Nd1 {[%clk 0:00:43.4]} 35... Rxc2 {[%clk 0:00:01.6]} 36.
Kxc2 {[%clk 0:00:43.8]} 36... Kc7 {[%clk 0:00:01.8]} 37. Kd3 {[%clk 0:00:40.7]}
37... Kd7 {[%clk 0:00:01.8]} 38. Ne3 {[%clk 0:00:40.6]} 38... Rh5 {[%clk
0:00:01.9]} 39. Kd4 {[%clk 0:00:38.4]} 39... Ke7 {[%clk 0:00:02.4]} 40. Rf4
{[%clk 0:00:33.2]} 40... Rg5 {[%clk 0:00:01.5]} 41. Ke5 {[%clk 0:00:30.5]} 41...
f6+ {[%clk 0:00:01.8]} 42. Kd4 {[%clk 0:00:30.8]} 42... Kd7 {[%clk 0:00:02.3]}
43. Rh4 {[%clk 0:00:30.6]} 43... Kc7 {[%clk 0:00:01.7]} 44. Ng2 {[%clk
0:00:28.6]} 1-0

[Event "*** SCC Grand Prix: Titled Tuesday Blitz"]
[Site "Chess.com"]
[Date "2020.08.25"]
[Round "6"]
[White "Ginger_GM"]
[Black "Kassimov_B"]
[Result "0-1"]
[WhiteElo "2558"]
[BlackElo "2439"]
[TimeControl "180+1"]
[EndTime "11:08:36 PDT"]
[Termination "Kassimov_B won by resignation"]

1. f4 {[%clk 0:03:00.9]} 1... e6 {[%clk 0:02:59.2]} 2. Nf3 {[%clk 0:02:58]} 2...
b6 {[%clk 0:02:58.8]} 3. e4 {[%clk 0:02:57.7]} 3... Bb7 {[%clk 0:02:59.7]} 4. d3
{[%clk 0:02:57.3]} 4... d5 {[%clk 0:02:58.7]} 5. e5 {[%clk 0:02:56.4]} 5... Nh6
{[%clk 0:02:57.3]} 6. d4 {[%clk 0:02:55.6]} 6... Nf5 {[%clk 0:02:53.7]} 7. Bd3
{[%clk 0:02:53.8]} 7... c5 {[%clk 0:02:46.3]} 8. c3 {[%clk 0:02:49.6]} 8... Qd7
{[%clk 0:02:41.7]} 9. Bxf5 {[%clk 0:02:43.2]} 9... exf5 {[%clk 0:02:41.2]} 10.
O-O {[%clk 0:02:43.4]} 10... Nc6 {[%clk 0:02:40.4]} 11. a3 {[%clk 0:02:42.6]}
11... Nd8 {[%clk 0:02:39.4]} 12. Be3 {[%clk 0:02:39.4]} 12... Ne6 {[%clk
0:02:38.8]} 13. b4 {[%clk 0:02:36.5]} 13... cxb4 {[%clk 0:02:32.4]} 14. axb4
{[%clk 0:02:33.2]} 14... Be7 {[%clk 0:02:29.3]} 15. Qd3 {[%clk 0:02:23]} 15...
g6 {[%clk 0:02:27]} 16. Nbd2 {[%clk 0:02:22.2]} 16... O-O {[%clk 0:02:25.1]} 17.
h3 {[%clk 0:02:18.6]} 17... a5 {[%clk 0:02:23]} 18. b5 {[%clk 0:02:18.3]} 18...
Rac8 {[%clk 0:02:21]} 19. Kh2 {[%clk 0:02:07]} 19... Rc7 {[%clk 0:02:12.2]} 20.
g4 {[%clk 0:02:04.5]} 20... Ng7 {[%clk 0:02:12.1]} 21. Rg1 {[%clk 0:01:57.5]}
21... Bc8 {[%clk 0:02:07.1]} 22. Bf2 {[%clk 0:01:34.5]} 22... Qe8 {[%clk
0:02:06.1]} 23. Nf1 {[%clk 0:01:12.9]} 23... Bd7 {[%clk 0:02:05.6]} 24. Rb1
{[%clk 0:01:12.8]} 24... Qc8 {[%clk 0:02:04]} 25. Be1 {[%clk 0:01:12.6]} 25...
fxg4 {[%clk 0:02:03.4]} 26. hxg4 {[%clk 0:01:08]} 26... Bxg4 {[%clk 0:02:03.7]}
27. Rb2 {[%clk 0:01:01.8]} 27... a4 {[%clk 0:01:57.8]} 28. Ng5 {[%clk
0:00:58.2]} 28... Bf5 {[%clk 0:01:50.7]} 29. Qg3 {[%clk 0:00:56.8]} 29... Nh5
{[%clk 0:01:40.1]} 30. Qh4 {[%clk 0:00:54.2]} 30... h6 {[%clk 0:01:36.7]} 31.
Ng3 {[%clk 0:00:39.1]} 31... hxg5 {[%clk 0:01:33.9]} 32. fxg5 {[%clk 0:00:38.9]}
32... Kg7 {[%clk 0:01:19.2]} 33. Rf2 {[%clk 0:00:25.9]} 33... Rh8 {[%clk
0:01:17.4]} 34. Rxf5 {[%clk 0:00:24.3]} 34... gxf5 {[%clk 0:01:17.6]} 35. Nxh5+
{[%clk 0:00:23.8]} 35... Rxh5 {[%clk 0:01:08.4]} 36. Qxh5 {[%clk 0:00:23.2]}
36... Qh8 {[%clk 0:01:09]} 37. Qxh8+ {[%clk 0:00:19.2]} 37... Kxh8 {[%clk
0:01:09.9]} 38. g6 {[%clk 0:00:19.4]} 38... Kg7 {[%clk 0:01:04.8]} 39. gxf7+
{[%clk 0:00:19.1]} 39... Kxf7 {[%clk 0:01:05.7]} 40. Rg2 {[%clk 0:00:18.4]}
40... a3 {[%clk 0:01:04]} 41. Ra2 {[%clk 0:00:18.3]} 41... Ke6 {[%clk
0:00:54.6]} 42. Kg2 {[%clk 0:00:18.6]} 42... Rc8 {[%clk 0:00:54]} 43. Kf3 {[%clk
0:00:18.9]} 43... Rh8 {[%clk 0:00:53.9]} 44. Bg3 {[%clk 0:00:18]} 44... Rh1
{[%clk 0:00:51.6]} 45. Bf4 {[%clk 0:00:17.5]} 45... Rb1 {[%clk 0:00:49.9]} 46.
Ke3 {[%clk 0:00:11.4]} 46... Rxb5 {[%clk 0:00:45.3]} 47. Kd3 {[%clk 0:00:10.9]}
47... Rb1 {[%clk 0:00:42.5]} 48. Kc2 {[%clk 0:00:09.7]} 48... Rf1 {[%clk
0:00:42]} 49. Bd2 {[%clk 0:00:09.6]} 49... Rf2 {[%clk 0:00:40.1]} 50. Ra1 {[%clk
0:00:08.3]} 50... Bg5 {[%clk 0:00:38.3]} 0-1

[Event "*** SCC Grand Prix: Titled Tuesday Blitz"]
[Site "Chess.com"]
[Date "2020.08.25"]
[Round "6"]
[White "lider34"]
[Black "ZenBull"]
[Result "1-0"]
[WhiteElo "2399"]
[BlackElo "2139"]
[TimeControl "180+1"]
[EndTime "11:08:36 PDT"]
[Termination "lider34 won by resignation"]

1. e4 {[%clk 0:03:00.9]} 1... c5 {[%clk 0:02:59.6]} 2. c3 {[%clk 0:02:59.8]}
2... Nf6 {[%clk 0:02:58.9]} 3. e5 {[%clk 0:02:58.7]} 3... Nd5 {[%clk 0:02:58.5]}
4. d4 {[%clk 0:02:59]} 4... cxd4 {[%clk 0:02:57.8]} 5. Nf3 {[%clk 0:02:59.3]}
5... e6 {[%clk 0:02:52.9]} 6. cxd4 {[%clk 0:02:59]} 6... b6 {[%clk 0:02:52.7]}
7. Nc3 {[%clk 0:02:57]} 7... Nxc3 {[%clk 0:02:51.7]} 8. bxc3 {[%clk 0:02:57]}
8... Qc7 {[%clk 0:02:51.8]} 9. Bd2 {[%clk 0:02:55.7]} 9... Bb7 {[%clk
0:02:50.6]} 10. Bd3 {[%clk 0:02:54.1]} 10... d6 {[%clk 0:02:49.9]} 11. O-O
{[%clk 0:02:50.7]} 11... Nd7 {[%clk 0:02:49.7]} 12. exd6 {[%clk 0:02:48.6]}
12... Bxd6 {[%clk 0:02:48.2]} 13. Re1 {[%clk 0:02:47.3]} 13... h6 {[%clk
0:02:41]} 14. h3 {[%clk 0:02:42.5]} 14... O-O {[%clk 0:02:40.1]} 15. Qe2 {[%clk
0:02:37.9]} 15... Rac8 {[%clk 0:02:32.6]} 16. c4 {[%clk 0:02:29.1]} 16... Rfd8
{[%clk 0:02:21.8]} 17. Rad1 {[%clk 0:02:27.1]} 17... Nf6 {[%clk 0:02:11.9]} 18.
Rc1 {[%clk 0:02:00.8]} 18... Bf4 {[%clk 0:02:08.3]} 19. Be3 {[%clk 0:01:57.7]}
19... Bxe3 {[%clk 0:01:59.9]} 20. fxe3 {[%clk 0:01:56.2]} 20... Bxf3 {[%clk
0:01:54.8]} 21. Qxf3 {[%clk 0:01:55.1]} 21... e5 {[%clk 0:01:55.2]} 22. d5
{[%clk 0:01:53.2]} 22... Qc5 {[%clk 0:01:49.6]} 23. Kh1 {[%clk 0:01:48.1]} 23...
Nd7 {[%clk 0:01:25.1]} 24. Rf1 {[%clk 0:01:44.8]} 24... Qe7 {[%clk 0:01:15.4]}
25. Qf5 {[%clk 0:01:32.9]} 25... Nf8 {[%clk 0:01:14]} 26. Rc2 {[%clk 0:01:24.1]}
26... Re8 {[%clk 0:01:12.8]} 27. Rcf2 {[%clk 0:01:21.8]} 27... Rc7 {[%clk
0:01:09.2]} 28. Qh5 {[%clk 0:01:17.1]} 28... Qg5 {[%clk 0:00:57.2]} 29. Qe2
{[%clk 0:01:11.4]} 29... e4 {[%clk 0:00:46.2]} 30. Bc2 {[%clk 0:01:08.6]} 30...
Ng6 {[%clk 0:00:42.2]} 31. Rf5 {[%clk 0:01:05.1]} 31... Qg3 {[%clk 0:00:39.9]}
32. Ba4 {[%clk 0:00:57.4]} 32... Rd8 {[%clk 0:00:29.9]} 33. Bb5 {[%clk
0:00:52.9]} 33... Re7 {[%clk 0:00:26.6]} 34. a4 {[%clk 0:00:47.1]} 34... Rd6
{[%clk 0:00:25.1]} 35. a5 {[%clk 0:00:42.4]} 35... Nh4 {[%clk 0:00:20.6]} 36.
R5f4 {[%clk 0:00:39.7]} 36... Rg6 {[%clk 0:00:19.9]} 37. Rg4 {[%clk 0:00:34.2]}
37... Rxg4 {[%clk 0:00:19.4]} 38. Qxg4 {[%clk 0:00:33.4]} 38... Qxg4 {[%clk
0:00:19.3]} 39. hxg4 {[%clk 0:00:33.2]} 39... Ng6 {[%clk 0:00:19.3]} 40. axb6
{[%clk 0:00:31.6]} 40... axb6 {[%clk 0:00:20.2]} 41. d6 {[%clk 0:00:31.4]} 41...
Re6 {[%clk 0:00:18.1]} 42. d7 {[%clk 0:00:30.7]} 42... Rd6 {[%clk 0:00:18.1]}
43. Ra1 {[%clk 0:00:28.1]} 43... Ne5 {[%clk 0:00:13]} 44. Ra8+ {[%clk
0:00:28.5]} 44... Kh7 {[%clk 0:00:13.3]} 45. d8=Q {[%clk 0:00:28.2]} 1-0

[Event "*** SCC Grand Prix: Titled Tuesday Blitz"]
[Site "Chess.com"]
[Date "2020.08.25"]
[Round "6"]
[White "StephenDedalus83"]
[Black "Bodnar_Mykola"]
[Result "1-0"]
[WhiteElo "2738"]
[BlackElo "2499"]
[TimeControl "180+1"]
[EndTime "11:08:37 PDT"]
[Termination "StephenDedalus83 won by resignation"]

1. e4 {[%clk 0:03:00.9]} 1... e5 {[%clk 0:03:00.5]} 2. Nf3 {[%clk 0:03:00.7]}
2... Nc6 {[%clk 0:03:01.1]} 3. Bb5 {[%clk 0:03:00.4]} 3... g6 {[%clk 0:03:01.6]}
4. c3 {[%clk 0:02:59.2]} 4... a6 {[%clk 0:03:01.1]} 5. Ba4 {[%clk 0:02:58.3]}
5... b5 {[%clk 0:03:00.9]} 6. Bc2 {[%clk 0:02:55.9]} 6... Bg7 {[%clk 0:03:00.9]}
7. d4 {[%clk 0:02:55]} 7... exd4 {[%clk 0:03:00.8]} 8. cxd4 {[%clk 0:02:55]}
8... d5 {[%clk 0:03:01.4]} 9. exd5 {[%clk 0:02:54.2]} 9... Nce7 {[%clk
0:03:01.5]} 10. O-O {[%clk 0:02:52.3]} 10... Nf6 {[%clk 0:03:01]} 11. Nc3 {[%clk
0:02:44.4]} 11... O-O {[%clk 0:02:59.8]} 12. Bg5 {[%clk 0:02:42.1]} 12... Nexd5
{[%clk 0:02:52]} 13. Qd2 {[%clk 0:02:39.7]} 13... Bb7 {[%clk 0:02:37.1]} 14. Ne4
{[%clk 0:02:31]} 14... Nxe4 {[%clk 0:02:17.8]} 15. Bxe4 {[%clk 0:02:30.3]} 15...
Qc8 {[%clk 0:02:16.8]} 16. Rac1 {[%clk 0:02:26.3]} 16... Qg4 {[%clk 0:02:12.8]}
17. Rfe1 {[%clk 0:02:18.4]} 17... Rae8 {[%clk 0:02:03.5]} 18. h3 {[%clk
0:02:18.1]} 18... Qh5 {[%clk 0:01:47.1]} 19. Rc5 {[%clk 0:02:15.5]} 19... h6
{[%clk 0:01:13.6]} 20. Bxd5 {[%clk 0:02:11.7]} 20... Rxe1+ {[%clk 0:01:11.8]}
21. Qxe1 {[%clk 0:02:10.9]} 21... Bxd5 {[%clk 0:01:12.7]} 22. Rxd5 {[%clk
0:02:10.2]} 22... hxg5 {[%clk 0:01:12.9]} 23. Rxg5 {[%clk 0:02:09.5]} 23... Qh8
{[%clk 0:01:10]} 24. Qe4 {[%clk 0:02:05.5]} 24... Bf6 {[%clk 0:01:08.2]} 25. Rc5
{[%clk 0:02:04.4]} 25... Rd8 {[%clk 0:00:57.3]} 26. Rxc7 {[%clk 0:02:03.7]}
26... Bxd4 {[%clk 0:00:57.1]} 27. Nxd4 {[%clk 0:01:12]} 27... Qxd4 {[%clk
0:00:56.7]} 28. Qxd4 {[%clk 0:01:10.1]} 28... Rxd4 {[%clk 0:00:57.6]} 29. Ra7
{[%clk 0:01:10.1]} 29... Rd2 {[%clk 0:00:54.2]} 30. Rxa6 {[%clk 0:01:09.8]}
30... Rxb2 {[%clk 0:00:54]} 31. g4 {[%clk 0:01:09.4]} 31... b4 {[%clk
0:00:51.1]} 32. Kg2 {[%clk 0:01:09.3]} 32... g5 {[%clk 0:00:48.4]} 33. Kg3
{[%clk 0:01:01.4]} 33... Kg7 {[%clk 0:00:48.1]} 34. f4 {[%clk 0:00:58.5]} 34...
b3 {[%clk 0:00:42.3]} 35. fxg5 {[%clk 0:00:58]} 35... bxa2 {[%clk 0:00:36.3]}
36. Kh4 {[%clk 0:00:51.6]} 36... Rc2 {[%clk 0:00:33.1]} 37. Kh5 {[%clk
0:00:48.4]} 37... Rh2 {[%clk 0:00:22.2]} 38. Kh4 {[%clk 0:00:44.2]} 38... Rb2
{[%clk 0:00:21.1]} 39. Ra3 {[%clk 0:00:42.4]} 39... Kh7 {[%clk 0:00:20]} 40. Kh5
{[%clk 0:00:37.1]} 40... Kg7 {[%clk 0:00:19.8]} 41. Ra7 {[%clk 0:00:34.3]} 41...
Rh2 {[%clk 0:00:14.8]} 42. h4 {[%clk 0:00:33.1]} 42... Kg8 {[%clk 0:00:14.4]}
43. g6 {[%clk 0:00:30.1]} 43... fxg6+ {[%clk 0:00:13.4]} 44. Kxg6 {[%clk
0:00:29.4]} 44... Kf8 {[%clk 0:00:12.8]} 45. h5 {[%clk 0:00:29.4]} 45... Rg2
{[%clk 0:00:12.8]} 46. g5 {[%clk 0:00:29.3]} 46... Rb2 {[%clk 0:00:13.1]} 47.
Kh6 {[%clk 0:00:28.6]} 47... Rb6+ {[%clk 0:00:13]} 48. g6 {[%clk 0:00:28.6]}
48... Ke8 {[%clk 0:00:12.1]} 49. Rxa2 {[%clk 0:00:26.1]} 1-0